fUSD/lending_fUSD_20250108
["ID","MTS","AMOUNT","RATE_DAILY","PERIOD"]
[348163995,1736361046387,-500.0,0.00010893,2]
[348163996,1736361046396,-500.0,0.00010893,2]
[348163997,1736361046406,-500.0,0.00010893,2]
[348163998,1736361046415,-500.0,0.00010893,2]
[348163999,1736361046425,-500.0,0.00010893,2]
[348164000,1736361046435,-167.328676,0.00010893,2]
[348164001,1736361046444,-500.0,0.00010893,2]
[348164002,1736361046454,-500.0,0.00010893,2]
[348164003,1736361046464,-513.56589361,0.00010893,2]
[348164004,1736361046476,-508.20928554,0.00010893,2]
[348164005,1736361046487,-506.92734699,0.00010893,2]
[348164006,1736361046498,-730.26,0.00010893,2]
[348164007,1736361046511,-500.0,0.00010893,2]
[348164008,1736361046522,-500.0,0.00010893,2]
[348164009,1736361046531,-500.0,0.00010893,2]
[348164010,1736361046540,-500.0,0.00010893,2]
[348164011,1736361046550,-500.0,0.00010893,2]
[348164012,1736361046559,-500.0,0.00010893,2]
[348164013,1736361046571,-500.0,0.00010893,2]
[348164014,1736361046583,-500.0,0.00010893,2]
[348164015,1736361046592,-500.0,0.00010893,2]
[348164016,1736361046601,-500.0,0.00010893,2]
[348164017,1736361046613,-439.77917585,0.00010893,2]
[348164018,1736361046623,-267.60524433,0.00010893,2]
[348164019,1736361046632,-500.0,0.00010893,2]
[348164020,1736361046642,-502.52434277,0.00010893,2]
[348164021,1736361046652,-500.0,0.00010893,2]
[348164022,1736361046663,-500.0,0.00010893,2]
[348164023,1736361046674,-340.40263152,0.00010893,2]
[348164024,1736361046683,-500.0,0.00010893,2]
[348164025,1736361046693,-651.54,0.00010893,2]
[348164026,1736361046703,-500.0,0.00010893,2]
[348164027,1736361046712,-166.18826,0.00010893,2]
[348164028,1736361046721,-1195.02,0.00010893,2]
[348164029,1736361046779,-500.0,0.00010893,2]
[348164030,1736361046788,-158.471456,0.00010893,2]
[348164031,1736361046798,-866.56,0.00010893,2]
[348164032,1736361046807,-500.0,0.00010893,2]
[348164033,1736361046817,-152.054135,0.00010893,2]
[348164035,1736361046826,-158.091979,0.00010893,2]
[348164037,1736361046835,-500.0,0.00010893,2]
[348164038,1736361046844,-156.728286,0.00010893,2]
[348164039,1736361046855,-2351.61,0.00010893,2]
[348164040,1736361046864,-500.0,0.00010893,2]
[348164041,1736361046874,-500.0,0.00010893,2]
[348164042,1736361046883,-159.229129,0.00010893,2]
[348164044,1736361046892,-500.0,0.00010893,2]
[348164046,1736361046901,-1159.31,0.00010893,2]
[348164048,1736361046910,-500.0,0.00010893,2]
[348164050,1736361046919,-152.61503,0.00010893,2]
[348164052,1736361046929,-500.0,0.00010893,2]
[348164053,1736361046939,-500.0,0.00010893,2]
[348164054,1736361046948,-3989.43,0.00010893,2]
[348164055,1736361046958,-500.0,0.00010893,2]
[348164056,1736361046967,-500.0,0.00010893,2]
[348164057,1736361046977,-500.0,0.00010893,2]
[348164058,1736361046986,-505.00943469,0.00010893,2]
[348164059,1736361046995,-2178.58,0.00010893,2]
[348164060,1736361047005,-621.73,0.00010893,2]
[348164061,1736361047015,-165.126504,0.00010893,2]
[348164062,1736361047024,-3369.19,0.00010893,2]
[348164063,1736361047033,-589.79859388,0.00010893,2]
[348164064,1736361047043,-500.0,0.00010893,2]
[348164065,1736361047053,-329.05786466,0.00010893,2]
[348164066,1736361047065,-500.0,0.00010893,2]
[348164067,1736361047075,-500.0,0.00010893,2]
[348164068,1736361047085,-165.332951,0.00010893,2]
[348164069,1736361047096,-500.0,0.00010893,2]
[348164070,1736361047108,-500.0,0.00010893,2]
[348164071,1736361047119,-500.0,0.00010893,2]
[348164072,1736361047129,-500.0,0.00010893,2]
[348164073,1736361047139,-500.0,0.00010893,2]
[348164074,1736361047150,-500.0,0.00010893,2]
[348164075,1736361047160,-185.767317,0.00010893,2]
[348164076,1736361047170,-500.0,0.00010893,2]
[348164077,1736361047181,-514.28181499,0.00010893,2]
[348164078,1736361047192,-232.7115894,0.00010893,2]
[348164079,1736361047202,-500.0,0.00010893,2]
[348164080,1736361047215,-500.0,0.00010893,2]
[348164081,1736361047225,-500.0,0.00010893,2]
[348164082,1736361047235,-500.0,0.00010893,2]
[348164083,1736361047244,-500.0,0.00010893,2]
[348164084,1736361047254,-500.0,0.00010893,2]
[348164085,1736361047263,-500.0,0.00010893,2]
[348164086,1736361047273,-500.0,0.00010893,2]
[348164087,1736361047283,-1557.44,0.00010893,2]
[348164088,1736361047292,-1610.16,0.00010893,2]
[348164089,1736361047301,-3022.51,0.00010893,2]
[348164090,1736361047311,-500.0,0.00010894,2]
[348164091,1736361047320,-500.0,0.00010894,2]
[348164092,1736361047329,-500.0,0.00010894,2]
[348164093,1736361047338,-500.0,0.00010894,2]
[348164094,1736361047347,-500.0,0.00010894,2]
[348164095,1736361047358,-500.0,0.00010894,2]
[348164096,1736361047367,-570.47,0.00010894,2]
[348164097,1736361047377,-500.0,0.00010894,2]
[348164098,1736361047386,-500.0,0.00010894,2]
[348164099,1736361047396,-700.7,0.00010894,2]
[348164100,1736361047405,-1537.89,0.00010894,2]
[348164101,1736361047415,-909.69,0.00010894,2]
[348164102,1736361047425,-571.33,0.00010894,2]
[348164103,1736361047435,-523.0,0.00010894,2]
[348164104,1736361047444,-500.0,0.00010894,2]
[348164105,1736361047453,-1030.33,0.00010894,2]
[348164106,1736361047465,-500.0,0.00010894,2]
[348164107,1736361047475,-646.03,0.00010894,2]
[348164108,1736361047484,-500.0,0.00010895,2]
[348164109,1736361047494,-507.45,0.00010895,2]
[348164110,1736361047504,-1059.33,0.00010895,2]
[348164111,1736361047514,-1131.1,0.00010895,2]
[348164112,1736361047524,-1159.0,0.00010895,2]
[348164113,1736361047533,-4894.87,0.00010895,2]
[348164114,1736361047543,-582.08,0.00010895,2]
[348164115,1736361047553,-611.95,0.00010895,2]
[348164116,1736361047563,-625.52,0.00010895,2]
[348164117,1736361047574,-659.19,0.00010895,2]
[348164118,1736361047584,-1000.0,0.00010895,2]
[348164119,1736361047594,-573.07,0.00010895,2]
[348164120,1736361047606,-515.52,0.00010895,2]
[348164121,1736361047621,-500.0,0.00010895,2]
[348164122,1736361047631,-2616.42,0.00010895,2]
[348164123,1736361047640,-1474.36,0.00010895,2]
[348164124,1736361047650,-636.1,0.00010895,2]
[348164125,1736361047659,-1134.39,0.00010895,2]
[348164126,1736361047668,-895.0,0.00010895,2]
[348164127,1736361047679,-708.15,0.00010895,2]
[348164128,1736361047688,-900.0,0.000109,3]
[348164129,1736361047697,-210.18210034,0.000109,2]
[348164130,1736361047706,-150.0,0.00010959,2]
[348164131,1736361047716,-500.0,0.00010986,2]
[348164132,1736361047725,-1619.15,0.00010995,2]
[348164133,1736361047734,-1929.05,0.00010995,2]
[348164134,1736361047743,-1203.84,0.00010995,2]
[348164135,1736361047753,-821.05,0.00010995,2]
[348164136,1736361047763,-2825.48,0.00010995,2]
[348164137,1736361047773,-500.0,0.00010995,2]
[348164138,1736361047782,-816.5,0.00010995,2]
[348164139,1736361047793,-500.0,0.00010995,2]
[348164140,1736361047803,-1624.66,0.00010995,2]
[348164141,1736361047812,-500.0,0.00010995,2]
[348164142,1736361047823,-353.93873624,0.00010995,2]
[348164143,1736361047835,-500.0,0.00010995,2]
[348164144,1736361047845,-1621.92,0.00010995,2]
[348164145,1736361047860,-500.0,0.00010995,2]
[348164146,1736361047869,-500.0,0.00010995,2]
[348164147,1736361047879,-500.0,0.00010995,2]
[348164148,1736361047888,-500.0,0.00010995,2]
[348164149,1736361047898,-550.0,0.00011,2]
[348164150,1736361047907,-25550.73411993,0.00011,2]
[348164151,1736361047917,-150.0,0.00011047,2]
[348164152,1736361047927,-150.0,0.00011047,2]
[348164153,1736361047936,-150.32158698,0.00011047,2]
[348164154,1736361047946,-172.18944151,0.00011047,2]
[348164155,1736361047955,-150.0,0.00011047,2]
[348164156,1736361047965,-150.00000001,0.00011047,2]
[348164157,1736361047974,-150.0,0.00011047,2]
[348164158,1736361047984,-277.53698568,0.00011047,2]
[348164159,1736361047994,-150.48340736,0.00011047,2]
[348164160,1736361048003,-150.0,0.00011047,2]
[348164161,1736361048013,-294.97337934,0.0001105,2]
[348164162,1736361048023,-989.96,0.00011066,2]
[348164163,1736361048033,-1435.64,0.00011067,2]
[348164164,1736361048042,-3206.8,0.00011067,2]
[348164165,1736361048051,-2165.35,0.00011067,2]
[348164166,1736361048061,-500.0,0.00011067,2]
[348164167,1736361048070,-663.48,0.00011067,2]
[348164168,1736361048079,-500.0,0.00011067,2]
[348164169,1736361048089,-2678.88,0.00011067,2]
[348164170,1736361048098,-3066.94,0.00011067,2]
[348164171,1736361048110,-1218.91,0.00011067,2]
[348164172,1736361048119,-3513.9,0.00011067,2]
[348164173,1736361048129,-500.0,0.00011067,2]
[348164174,1736361048138,-932.08,0.00011067,2]
[348164175,1736361048147,-500.0,0.00011067,2]
[348164176,1736361048156,-634.0,0.00011067,2]
[348164177,1736361048166,-1637.65,0.00011067,2]
[348164178,1736361048175,-1172.37,0.00011067,2]
[348164179,1736361048184,-1211.97,0.00011067,2]
[348164180,1736361048193,-500.0,0.00011067,2]
[348164181,1736361048202,-3602.7,0.00011067,2]
[348164182,1736361048211,-500.85,0.00011068,2]
[348164183,1736361048221,-500.0,0.00011068,2]
[348164184,1736361048231,-297.8202975,0.00011068,2]
[348164185,1736361048240,-500.0,0.00011068,2]
[348164186,1736361048250,-500.0,0.00011068,2]
[348164187,1736361048259,-500.0,0.00011068,2]
[348164188,1736361048268,-500.0,0.00011068,2]
[348164189,1736361048277,-500.0,0.00011068,2]
[348164190,1736361048287,-500.0,0.00011068,2]
[348164191,1736361048296,-500.0,0.00011068,2]
[348164192,1736361048305,-500.0,0.00011068,2]
[348164193,1736361048314,-500.0,0.00011068,2]
[348164194,1736361048324,-500.0,0.00011068,2]
[348164195,1736361048334,-500.0,0.00011068,2]
[348164196,1736361048343,-500.0,0.00011068,2]
[348164197,1736361048353,-500.0,0.00011068,2]
[348164198,1736361048365,-500.0,0.00011068,2]
[348164199,1736361048375,-500.0,0.00011068,2]
[348164200,1736361048385,-500.0,0.00011068,2]
[348164201,1736361048395,-500.0,0.00011068,2]
[348164202,1736361048404,-500.0,0.00011068,2]
[348164203,1736361048413,-500.0,0.00011068,2]
[348164204,1736361048423,-622.67,0.00011068,2]
[348164205,1736361048433,-500.0,0.00011068,2]
[348164206,1736361048443,-500.0,0.00011068,2]
[348164207,1736361048453,-500.0,0.00011068,2]
[348164208,1736361048463,-151.06,0.00011068,2]
[348164209,1736361048473,-500.0,0.00011068,2]
[348164210,1736361048482,-500.0,0.00011068,2]
[348164211,1736361048492,-500.0,0.00011068,2]
[348164212,1736361048501,-500.0,0.00011068,2]
[348164213,1736361048511,-329.2707614,0.00011068,2]
[348164214,1736361048521,-500.0,0.00011068,2]
[348164215,1736361048531,-517.88,0.00011068,2]
[348164216,1736361048541,-500.0,0.00011068,2]
[348164217,1736361048551,-644.82,0.00011068,2]
[348164218,1736361048562,-500.0,0.00011068,2]
[348164219,1736361048571,-500.0,0.00011068,2]
[348164220,1736361048584,-500.0,0.00011068,2]
[348164221,1736361048594,-500.0,0.00011068,2]
[348164222,1736361048604,-185.10698301,0.00011068,2]
[348164223,1736361048616,-582.79,0.00011068,2]
[348164224,1736361048626,-841.41,0.00011068,2]
[348164225,1736361048636,-1149.41,0.00011068,2]
[348164226,1736361048645,-1678.01,0.00011068,2]
[348164227,1736361048656,-927.99,0.00011068,2]
[348164228,1736361048665,-500.0,0.00011068,2]
[348164229,1736361048675,-150.0,0.00011094,2]
[348164230,1736361048684,-369.42205731,0.00011099,2]
[348164231,1736361048695,-369.42205723,0.00011099,2]
[348164232,1736361048706,-369.42205723,0.00011099,2]
[348164233,1736361048717,-369.42205723,0.00011099,2]
[348164234,1736361048727,-369.42205723,0.00011099,2]
[348164235,1736361048737,-369.42205723,0.00011099,2]
[348164236,1736361048747,-369.42205723,0.00011099,2]
[348164237,1736361048757,-369.42205723,0.00011099,2]
[348164238,1736361048768,-369.42205723,0.00011099,2]
[348164239,1736361048778,-369.42205723,0.00011099,2]
[348164240,1736361048788,-500.0,0.00011129,2]
[348164241,1736361048798,-500.0,0.00011129,2]
[348164242,1736361048807,-500.0,0.00011129,2]
[348164243,1736361048817,-500.0,0.00011129,2]
[348164244,1736361048827,-714.17,0.00011129,2]
[348164245,1736361048837,-500.0,0.00011129,2]
[348164246,1736361048847,-500.0,0.00011129,2]
[348164247,1736361048858,-500.0,0.00011129,2]
[348164248,1736361048868,-587.28,0.00011129,2]
[348164249,1736361048878,-346.01771098,0.00011129,2]
[348164250,1736361048888,-524.58,0.00011129,2]
[348164251,1736361048898,-617.59,0.00011129,2]
[348164252,1736361048908,-381.71680311,0.00011129,2]
[348164253,1736361048918,-500.0,0.00011129,2]
[348164254,1736361048930,-519.43,0.00011129,2]
[348164255,1736361048941,-287.8620087,0.00011129,2]
[348164256,1736361048951,-500.0,0.00011129,2]
[348164257,1736361048962,-596.38,0.00011129,2]
[348164258,1736361048972,-500.0,0.00011129,2]
[348164259,1736361048983,-500.0,0.00011129,2]
[348164260,1736361048994,-500.0,0.00011129,2]
[348164261,1736361049005,-500.0,0.00011129,2]
[348164262,1736361049016,-500.0,0.00011129,2]
[348164263,1736361049027,-500.0,0.00011129,2]
[348164264,1736361049039,-500.0,0.00011129,2]
[348164265,1736361049050,-500.0,0.00011129,2]
[348164266,1736361049060,-500.0,0.00011129,2]
[348164267,1736361049071,-346.0833364,0.00011129,2]
[348164268,1736361049081,-566.69345333,0.00011129,2]
[348164269,1736361049091,-500.0,0.00011129,2]
[348164270,1736361049100,-500.0,0.00011129,2]
[348164271,1736361049111,-500.0,0.00011129,2]
[348164272,1736361049122,-500.0,0.00011129,2]
[348164273,1736361049131,-150.0,0.00011129,2]
[348164274,1736361049142,-500.0,0.00011129,2]
[348164275,1736361049152,-520.47,0.00011129,2]
[348164276,1736361049161,-500.0,0.00011129,2]
[348164277,1736361049171,-537.99,0.00011129,2]
[348164278,1736361049181,-500.0,0.00011129,2]
[348164279,1736361049191,-500.0,0.00011129,2]
[348164280,1736361049201,-500.0,0.00011129,2]
[348164281,1736361049211,-500.0,0.00011129,2]
[348164282,1736361049221,-500.0,0.00011129,2]
[348164283,1736361049231,-500.0,0.00011129,2]
[348164284,1736361049240,-500.0,0.00011129,2]
[348164285,1736361049250,-620.56,0.00011129,2]
[348164286,1736361049260,-500.0,0.00011129,2]
[348164287,1736361049269,-756.73,0.00011129,2]
[348164288,1736361049279,-500.0,0.00011129,2]
[348164289,1736361049289,-500.0,0.00011129,2]
[348164290,1736361049299,-500.0,0.00011129,2]
[348164291,1736361049309,-500.0,0.00011129,2]
[348164292,1736361049318,-500.0,0.00011129,2]
[348164293,1736361049328,-500.0,0.00011129,2]
[348164294,1736361049339,-500.0,0.00011129,2]
[348164295,1736361049349,-500.0,0.00011129,2]
[348164296,1736361049361,-500.0,0.00011129,2]
[348164297,1736361049371,-500.0,0.00011129,2]
[348164298,1736361049381,-500.0,0.00011129,2]
[348164299,1736361049391,-500.0,0.00011129,2]
[348164300,1736361049401,-500.0,0.00011129,2]
[348164301,1736361049411,-500.0,0.00011129,2]
[348164302,1736361049421,-500.0,0.00011129,2]
[348164303,1736361049431,-500.0,0.00011129,2]
[348164304,1736361049440,-500.0,0.00011129,2]
[348164305,1736361049450,-500.0,0.00011129,2]
[348164306,1736361049460,-500.0,0.00011129,2]
[348164307,1736361049470,-623.89,0.00011129,2]
[348164308,1736361049480,-500.0,0.00011129,2]
[348164309,1736361049490,-500.0,0.00011129,2]
[348164310,1736361049500,-500.0,0.00011129,2]
[348164311,1736361049509,-742.3,0.00011129,2]
[348164312,1736361049518,-2040.84,0.0001113,2]
[348164313,1736361049528,-1144.17,0.0001113,2]
[348164314,1736361049538,-150.0,0.00011134,2]
[348164315,1736361049548,-150.0,0.00011136,2]
[348164316,1736361049558,-150.0,0.00011141,2]
[348164317,1736361049569,-150.0,0.00011141,2]
[348164318,1736361049583,-500.0,0.00011167,2]
[348164319,1736361049593,-500.0,0.00011167,2]
[348164320,1736361049603,-500.0,0.00011167,2]
[348164321,1736361049615,-500.0,0.00011167,2]
[348164322,1736361049626,-500.0,0.00011167,2]
[348164323,1736361049636,-500.0,0.00011167,2]
[348164324,1736361049645,-650.17,0.00011167,2]
[348164325,1736361049655,-500.0,0.00011167,2]
[348164326,1736361049666,-1257.3,0.00011167,2]
[348164327,1736361049676,-500.0,0.00011167,2]
[348164328,1736361049686,-500.0,0.00011167,2]
[348164329,1736361049696,-703.55,0.00011167,2]
[348164330,1736361049706,-493.161191,0.00011167,2]
[348164331,1736361049716,-546.89551481,0.00011167,2]
[348164332,1736361049726,-525.35,0.00011167,2]
[348164333,1736361049736,-260.60039628,0.00011167,2]
[348164334,1736361049746,-500.0,0.00011167,2]
[348164335,1736361049756,-548.498834,0.00011167,2]
[348164336,1736361049766,-555.53,0.00011167,2]
[348164337,1736361049776,-1533.29,0.00011167,2]
[348164338,1736361049787,-500.0,0.00011167,2]
[348164339,1736361049798,-500.0,0.00011167,2]
[348164340,1736361049808,-500.0,0.00011167,2]
[348164341,1736361049818,-500.0,0.00011167,2]
[348164342,1736361049829,-500.0,0.00011167,2]
[348164343,1736361049839,-500.0,0.00011167,2]
[348164344,1736361049850,-500.0,0.00011167,2]
[348164345,1736361049863,-500.0,0.00011167,2]
[348164346,1736361049873,-500.0,0.00011167,2]
[348164347,1736361049884,-1687.71,0.00011167,2]
[348164348,1736361049894,-500.0,0.00011167,2]
[348164349,1736361049904,-500.0,0.00011167,2]
[348164350,1736361049914,-500.0,0.00011167,2]
[348164351,1736361049924,-500.0,0.00011167,2]
[348164352,1736361049935,-500.0,0.00011167,2]
[348164353,1736361049945,-730.26,0.00011167,2]
[348164354,1736361049955,-500.0,0.00011167,2]
[348164355,1736361049964,-500.0,0.00011167,2]
[348164356,1736361049974,-500.0,0.00011167,2]
[348164357,1736361049985,-500.0,0.00011167,2]
[348164358,1736361049995,-198.6,0.00011167,2]
[348164359,1736361050004,-500.0,0.00011167,2]
[348164360,1736361050014,-651.54,0.00011167,2]
[348164361,1736361050024,-323.23,0.00011167,2]
[348164362,1736361050034,-1195.02,0.00011167,2]
[348164363,1736361050045,-302.26,0.00011167,2]
[348164364,1736361050055,-158.471456,0.00011167,2]
[348164365,1736361050065,-866.56,0.00011167,2]
[348164366,1736361050075,-500.0,0.00011167,2]
[348164367,1736361050085,-2351.61,0.00011167,2]
[348164368,1736361050095,-500.0,0.00011167,2]
[348164369,1736361050106,-500.0,0.00011167,2]
[348164370,1736361050115,-500.0,0.00011167,2]
[348164371,1736361050126,-1159.31,0.00011167,2]
[348164372,1736361050136,-500.0,0.00011167,2]
[348164373,1736361050146,-500.0,0.00011167,2]
[348164374,1736361050156,-500.0,0.00011167,2]
[348164375,1736361050167,-3989.43,0.00011167,2]
[348164376,1736361050177,-500.0,0.00011167,2]
[348164377,1736361050187,-500.0,0.00011167,2]
[348164378,1736361050198,-2178.58,0.00011167,2]
[348164379,1736361050208,-3369.19,0.00011167,2]
[348164380,1736361050218,-468.65,0.00011167,2]
[348164381,1736361050228,-500.0,0.00011167,2]
[348164382,1736361050238,-500.0,0.00011167,2]
[348164383,1736361050248,-500.0,0.00011167,2]
[348164384,1736361050259,-355.86,0.00011167,2]
[348164385,1736361050269,-500.0,0.00011167,2]
[348164386,1736361050279,-500.0,0.00011167,2]
[348164387,1736361050289,-500.0,0.00011167,2]
[348164388,1736361050299,-500.0,0.00011167,2]
[348164389,1736361050309,-500.0,0.00011167,2]
[348164390,1736361050318,-500.0,0.00011167,2]
[348164391,1736361050328,-331.79585934,0.00011167,2]
[348164392,1736361050339,-500.0,0.00011167,2]
[348164393,1736361050349,-500.0,0.00011167,2]
[348164394,1736361050360,-1557.44,0.00011167,2]
[348164395,1736361050371,-1610.16,0.00011167,2]
[348164396,1736361050381,-3022.51,0.00011167,2]
[348164397,1736361050391,-500.0,0.00011168,2]
[348164398,1736361050401,-411.14625739,0.00011168,2]
[348164399,1736361050410,-500.0,0.00011168,2]
[348164400,1736361050421,-500.0,0.00011168,2]
[348164401,1736361050432,-500.0,0.00011168,2]
[348164402,1736361050442,-570.47,0.00011168,2]
[348164403,1736361050451,-500.0,0.00011168,2]
[348164404,1736361050462,-500.0,0.00011168,2]
[348164405,1736361050472,-700.7,0.00011168,2]
[348164406,1736361050481,-1537.89,0.00011168,2]
[348164407,1736361050491,-909.69,0.00011168,2]
[348164408,1736361050502,-571.33,0.00011168,2]
[348164409,1736361050511,-523.0,0.00011168,2]
[348164410,1736361050522,-500.0,0.00011168,2]
[348164411,1736361050533,-1030.33,0.00011168,2]
[348164412,1736361050543,-500.0,0.00011168,2]
[348164413,1736361050552,-646.03,0.00011168,2]
[348164414,1736361050562,-507.45,0.00011169,2]
[348164415,1736361050574,-1059.33,0.00011169,2]
[348164416,1736361050586,-1131.1,0.00011169,2]
[348164417,1736361050596,-1159.0,0.00011169,2]
[348164418,1736361050607,-4894.87,0.00011169,2]
[348164419,1736361050617,-582.08,0.00011169,2]
[348164420,1736361050783,-611.95,0.00011169,2]
[348164421,1736361050794,-625.52,0.00011169,2]
[348164422,1736361050804,-659.19,0.00011169,2]
[348164423,1736361050813,-585.95589756,0.00011169,2]
[348164424,1736361050823,-573.07,0.00011169,2]
[348164425,1736361050833,-515.52,0.00011169,2]
[348164426,1736361050842,-500.0,0.00011169,2]
[348164427,1736361050851,-2616.42,0.00011169,2]
[348164428,1736361050861,-1474.36,0.00011169,2]
[348164429,1736361050871,-636.1,0.00011169,2]
[348164430,1736361050880,-1134.39,0.00011169,2]
[348164431,1736361050890,-895.0,0.00011169,2]
[348164432,1736361050899,-708.15,0.00011169,2]
[348164433,1736361050908,-150.0,0.00011188,2]
[348164434,1736361050918,-500.0,0.00011218,2]
[348164435,1736361050928,-150.0,0.00011222,2]
[348164436,1736361050938,-150.0,0.0001123,2]
[348164437,1736361050948,-150.0,0.00011235,2]
[348164438,1736361050958,-150.0,0.00011235,2]
[348164439,1736361050969,-501.0,0.0001126,2]
[348164440,1736361050980,-1619.15,0.00011269,2]
[348164441,1736361050991,-1929.05,0.00011269,2]
[348164442,1736361051000,-1203.84,0.00011269,2]
[348164443,1736361051010,-821.05,0.00011269,2]
[348164444,1736361051020,-2825.48,0.00011269,2]
[348164445,1736361051031,-500.0,0.00011269,2]
[348164446,1736361051041,-816.5,0.00011269,2]
[348164447,1736361051050,-500.0,0.00011269,2]
[348164448,1736361051059,-1624.66,0.00011269,2]
[348164449,1736361051069,-500.0,0.00011269,2]
[348164450,1736361051079,-1621.92,0.00011269,2]
[348164451,1736361051089,-500.0,0.00011269,2]
[348164452,1736361051100,-500.0,0.00011269,2]
[348164453,1736361051110,-500.0,0.00011269,2]
[348164454,1736361051119,-150.0,0.00011283,2]
[348164455,1736361051129,-150.227654,0.00011294,2]
[348164456,1736361051139,-150.227651,0.00011294,2]
[348164457,1736361051148,-150.227651,0.00011294,2]
[348164458,1736361051158,-500.0,0.000113,2]
[348164459,1736361051167,-500.0,0.000113,2]
[348164460,1736361051177,-500.0,0.000113,2]
[348164461,1736361051186,-500.0,0.000113,2]
[348164462,1736361051195,-500.0,0.000113,2]
[348164463,1736361051205,-500.0,0.000113,2]
[348164464,1736361051215,-500.0,0.000113,2]
[348164465,1736361051224,-500.0,0.000113,2]
[348164466,1736361051233,-500.0,0.000113,2]
[348164467,1736361051243,-546.45,0.000113,2]
[348164468,1736361051252,-150.0,0.0001131,2]
[348164469,1736361051262,-502.17195662,0.00011328,2]
[348164470,1736361051271,-150.0,0.0001133,2]
[348164471,1736361051281,-150.0,0.0001133,2]
[348164472,1736361051291,-1435.64,0.00011341,2]
[348164473,1736361051300,-3206.8,0.00011341,2]
[348164474,1736361051310,-2165.35,0.00011341,2]
[348164475,1736361051319,-500.0,0.00011341,2]
[348164476,1736361051330,-663.48,0.00011341,2]
[348164477,1736361051339,-500.0,0.00011341,2]
[348164478,1736361051348,-2678.88,0.00011341,2]
[348164479,1736361051358,-3066.94,0.00011341,2]
[348164480,1736361051367,-1218.91,0.00011341,2]
[348164481,1736361051376,-3513.9,0.00011341,2]
[348164482,1736361051385,-500.0,0.00011341,2]
[348164483,1736361051394,-932.08,0.00011341,2]
[348164484,1736361051403,-500.0,0.00011341,2]
[348164485,1736361051413,-634.0,0.00011341,2]
[348164486,1736361051423,-1637.65,0.00011341,2]
[348164487,1736361051432,-1172.37,0.00011341,2]
[348164488,1736361051442,-1211.97,0.00011341,2]
[348164489,1736361051451,-500.0,0.00011341,2]
[348164490,1736361051460,-3602.7,0.00011341,2]
[348164491,1736361051470,-500.85,0.00011342,2]
[348164492,1736361051479,-500.0,0.00011342,2]
[348164493,1736361051489,-305.99456929,0.00011342,2]
[348164494,1736361051499,-500.0,0.00011342,2]
[348164495,1736361051509,-500.0,0.00011342,2]
[348164496,1736361051519,-500.0,0.00011342,2]
[348164497,1736361051528,-500.0,0.00011342,2]
[348164498,1736361051538,-500.0,0.00011342,2]
[348164499,1736361051548,-500.0,0.00011342,2]
[348164500,1736361051558,-500.0,0.00011342,2]
[348164501,1736361051571,-500.0,0.00011342,2]